bitfinex/quotes_BTCUSD_20260315
["timestamp","ask_amount","ask_price","bid_price","bid_amount"]
[1773565311418,0.09273598,71852.0,71825.0,0.00115031]
[1773565311894,0.07020696,71853.0,71825.0,0.00115031]
[1773565312105,0.10273598,71857.0,71825.0,0.00115031]
[1773565312106,0.00446388,71857.0,71830.0,0.17444107]
[1773565312336,0.00446388,71857.0,71831.0,0.306072]
[1773565312337,0.00383235,71857.0,71831.0,0.306072]
[1773565312496,0.00383235,71857.0,71824.0,0.06961461]
[1773565312497,0.00383235,71857.0,71832.0,0.00019106]
[1773565312498,0.09385938,71855.0,71832.0,0.00019106]
[1773565312698,0.09385938,71855.0,71833.0,0.0014]
[1773565312906,0.07341555,71857.0,71835.0,0.00019106]
[1773565313101,0.07341555,71857.0,71836.0,0.0014]
[1773565313319,0.07341555,71857.0,71837.0,0.06979307]
[1773565313497,0.0014,71856.0,71838.0,0.00061073]
[1773565314813,0.00383235,71857.0,71838.0,0.00061073]
[1773565314998,0.07341546,71857.0,71838.0,0.00061073]
[1773565315365,0.00383235,71857.0,71839.0,0.06960007]
[1773565316672,0.09385938,71855.0,71837.0,0.06960201]
[1773565317037,0.09385938,71855.0,71837.0,0.07100201]
[1773565317197,0.06958554,71854.0,71837.0,0.07100201]
[1773565317400,0.09525938,71853.0,71835.0,0.06960201]
[1773565317732,0.06958498,71855.0,71830.0,0.06965797]
[1773565317733,0.09385938,71851.0,71830.0,0.06965797]
[1773565318299,0.09385938,71851.0,71830.0,0.06960797]
[1773565319949,0.09385938,71849.0,71827.0,0.0696117]
[1773565320517,0.08470884,71847.0,71827.0,0.0696117]
[1773565321543,0.08470884,71847.0,71820.0,0.0696677]
[1773565322159,0.08470884,71847.0,71820.0,0.0696177]
[1773565322160,0.08470884,71845.0,71820.0,0.0696177]
[1773565322363,0.06959329,71846.0,71820.0,0.0696177]
[1773565322364,0.08470884,71843.0,71821.0,0.04352862]
[1773565322874,0.08470884,71841.0,71821.0,0.04352862]
[1773565323267,0.08610884,71842.0,71821.0,0.04352862]
[1773565323685,0.06250884,71842.0,71820.0,0.0696177]
[1773565324477,0.07099814,71841.0,71821.0,0.0014]
[1773565324678,0.08431969,71840.0,71821.0,0.0014]
[1773565325800,0.0014,71839.0,71821.0,0.0014]
[1773565325998,0.08610884,71839.0,71821.0,0.0014]
[1773565326851,0.08470884,71837.0,71821.0,0.0014]
[1773565328804,0.08470884,71837.0,71817.0,0.0006019]
[1773565329002,0.08470884,71837.0,71817.0,0.07022315]
[1773565329003,0.08470884,71835.0,71817.0,0.07022315]
[1773565330068,0.08481601,71835.0,71817.0,0.07022315]
[1773565330531,0.08481601,71835.0,71817.0,0.0006019]
[1773565330854,0.06960589,71833.0,71817.0,0.0006019]
[1773565331052,0.08470884,71832.0,71817.0,0.0006019]
[1773565332614,0.08470884,71832.0,71817.0,0.070223]
[1773565333389,0.08470884,71830.0,71817.0,0.070223]
[1773565333760,0.08470884,71830.0,71817.0,0.0006019]
[1773565333966,0.0014,71829.0,71817.0,0.07022301]
[1773565334316,0.08470884,71828.0,71817.0,0.07022301]
[1773565334970,0.08470884,71828.0,71817.0,0.07042301]
[1773565335288,0.08470884,71828.0,71817.0,0.07042261]
[1773565335493,0.06961114,71828.0,71817.0,0.07042261]
[1773565335779,0.08470884,71827.0,71817.0,0.07042261]
[1773565336142,0.08470884,71827.0,71817.0,0.0008019]
[1773565336357,0.06970884,71827.0,71817.0,0.0008019]
[1773565337008,0.06970884,71827.0,71815.0,0.06962277]
[1773565337913,0.06961211,71827.0,71812.0,0.06962593]
[1773565338118,0.08470884,71826.0,71812.0,0.07102593]
[1773565340189,0.08570884,71826.0,71812.0,0.06962593]
[1773565340398,0.08570884,71826.0,71812.0,0.07102593]
[1773565340595,0.06961175,71827.0,71812.0,0.07102593]
[1773565340596,0.0014,71825.0,71812.0,0.07102593]
[1773565342631,0.0024,71825.0,71812.0,0.07102593]
[1773565343217,0.0024,71825.0,71800.0,0.28070878]
[1773565343437,0.09926366,71824.0,71805.0,0.06968286]
[1773565343963,0.0696137,71825.0,71805.0,0.06963286]
[1773565343964,0.0014,71823.0,71805.0,0.06963286]
[1773565344112,0.09786366,71821.0,71805.0,0.06963286]
[1773565344314,0.09786366,71819.0,71805.0,0.06963286]
[1773565344514,0.06961849,71820.0,71804.0,0.00025]
[1773565344515,0.08314059,71818.0,71804.0,0.00025]
[1773565344867,0.08314059,71818.0,71804.0,0.06988359]
[1773565345027,0.06961849,71820.0,71804.0,0.06988359]
[1773565345028,0.0014,71817.0,71804.0,0.06988359]
[1773565345754,0.09786366,71818.0,71804.0,0.06988359]
[1773565346560,0.06962139,71817.0,71804.0,0.06988359]
[1773565346762,0.16748505,71817.0,71805.0,0.0014]
[1773565347382,0.09786366,71816.0,71805.0,0.0014]
[1773565347559,0.09786366,71816.0,71804.0,0.00025]
[1773565347759,0.09786366,71816.0,71805.0,0.0014]
[1773565348366,0.09786366,71816.0,71806.0,0.0014]
[1773565348562,0.09786366,71816.0,71807.0,0.06963109]
[1773565348863,0.09786366,71816.0,71806.0,0.07103109]
[1773565349065,0.07586366,71816.0,71806.0,0.07103109]
[1773565349269,0.07101726,71822.0,71806.0,0.0014]
[1773565349270,0.06961726,71822.0,71806.0,0.0014]
[1773565349494,0.03431114,71854.0,71806.0,0.0014]
[1773565349495,0.07100492,71834.0,71811.0,0.09069931]
[1773565349704,0.09926366,71833.0,71811.0,0.09069931]
[1773565350060,0.09926366,71833.0,71812.0,0.0014]
[1773565351113,0.06960686,71832.0,71813.0,0.06962527]
[1773565351319,0.09786366,71831.0,71813.0,0.06962527]
[1773565352312,0.00010717,71835.0,71821.0,0.09069931]
[1773565352512,0.00010717,71835.0,71823.0,0.09069931]
[1773565353102,0.00022001,71833.0,71824.0,0.06961461]
[1773565355079,0.00010717,71835.0,71825.0,0.09069931]
[1773565355357,0.00010717,71835.0,71824.0,0.06961461]
[1773565356721,0.07597083,71838.0,71824.0,0.06961461]
[1773565356924,0.07597083,71838.0,71824.0,0.06997228]
[1773565357333,0.06981761,71842.0,71825.0,0.09069931]
[1773565358142,0.09786366,71841.0,71824.0,0.06997228]
[1773565358983,0.1674618,71841.0,71824.0,0.06997228]
[1773565359546,0.1674618,71841.0,71824.0,0.16067159]
[1773565359751,0.06959717,71844.0,71824.0,0.16067159]
[1773565359752,0.09786366,71851.0,71828.0,0.09069931]
[1773565360056,0.09786366,71851.0,71832.0,0.11033971]
[1773565360057,0.09786366,71850.0,71832.0,0.11033971]
[1773565360548,0.09786366,71850.0,71831.0,0.11033971]
[1773565361251,0.09786366,71850.0,71832.0,0.0014]
[1773565361452,0.09786366,71850.0,71833.0,0.06960589]
[1773565361453,0.16745364,71850.0,71833.0,0.06960589]
[1773565361626,0.16745358,71850.0,71833.0,0.06960589]
[1773565361830,0.06958992,71850.0,71833.0,0.06960589]
[1773565362030,0.09786366,71850.0,71833.0,0.06960589]
[1773565362753,0.09786366,71849.0,71834.0,0.0014]
[1773565363667,0.09786366,71849.0,71835.0,0.06960395]
[1773565363821,0.06959059,71849.0,71835.0,0.06960395]
[1773565364025,0.06959059,71849.0,71834.0,0.07100395]
[1773565364026,0.09786366,71848.0,71834.0,0.07100473]
[1773565364449,0.07986366,71848.0,71834.0,0.06960473]
[1773565365294,0.15273118,71849.0,71770.0,5e-05]
[1773565365295,0.15273118,71849.0,71810.0,5e-05]
[1773565365297,0.06165914,71839.0,71810.0,5e-05]
[1773565365469,0.15273118,71849.0,71815.0,0.00015717]
[1773565365470,0.0014,71838.0,71815.0,0.00015717]
[1773565365673,0.0618615,71835.0,71815.0,0.00015717]
[1773565366065,0.06960298,71836.0,71815.0,0.00015717]
[1773565366066,0.06960298,71836.0,71815.0,0.09085648]
[1773565366290,0.06960298,71836.0,71815.0,0.09080648]
[1773565366630,0.0014,71835.0,71815.0,0.09080648]
[1773565367276,0.13146448,71839.0,71815.0,0.09080648]
[1773565367277,0.13659285,71848.0,71815.0,0.09080648]
[1773565367481,0.06959168,71848.0,71815.0,0.09080648]
[1773565367881,0.06959168,71848.0,71816.0,0.06962236]
[1773565368181,0.06703226,71847.0,71817.0,0.09069931]
[1773565368381,0.06703226,71847.0,71817.0,0.09209931]
[1773565369201,5e-05,71846.0,71817.0,0.09209931]
[1773565369652,5e-05,71846.0,71817.0,0.09309931]
[1773565369987,0.06959523,71844.0,71818.0,0.06962042]
[1773565370192,0.06959523,71844.0,71819.0,0.09069931]
[1773565370193,0.0014,71843.0,71819.0,0.09069931]
[1773565370824,0.06959523,71847.0,71818.0,0.06962042]
[1773565370826,0.00372512,71857.0,71830.0,0.17429646]
[1773565370960,0.00372512,71857.0,71818.0,0.06962042]
[1773565370961,0.00372512,71857.0,71832.0,0.09724199]
[1773565371163,0.07330812,71857.0,71834.0,0.09724199]
[1773565371381,0.00372512,71857.0,71834.0,0.09724199]
[1773565371811,0.07330815,71857.0,71834.0,0.09724199]
[1773565371987,0.07330815,71857.0,71835.0,0.06960395]
[1773565372207,0.06958126,71859.0,71836.0,0.09520528]
[1773565373232,0.00022001,71847.0,71836.0,0.09520528]
[1773565375254,0.00022001,71847.0,71838.0,0.09662783]
[1773565375454,0.00022001,71847.0,71840.0,0.09662783]
[1773565375651,0.07132186,71864.0,71840.0,0.09662783]
[1773565375652,0.06957943,71861.0,71840.0,0.09662783]
[1773565376369,0.06993681,71861.0,71840.0,0.09662783]
[1773565377290,0.08438201,71861.0,71841.0,0.07099814]
[1773565377494,0.08438201,71861.0,71841.0,0.16762597]
[1773565377677,0.08438201,71861.0,71841.0,0.16622597]
[1773565377906,0.08438201,71861.0,71842.0,0.0014]
[1773565378261,0.08438201,71861.0,71843.0,0.0014]
[1773565378667,0.08438201,71861.0,71843.0,0.09662783]
[1773565378889,0.08438201,71861.0,71844.0,0.0014]
[1773565379097,0.0003455,71864.0,71842.0,0.09662783]
[1773565379261,0.00045267,71864.0,71846.0,0.09662783]
[1773565379456,6e-05,71869.0,71846.0,0.09662783]
[1773565379655,6e-05,71869.0,71846.0,0.09698521]
[1773565379656,0.06963151,71869.0,71846.0,0.09698521]
[1773565379880,6e-05,71869.0,71846.0,0.09698521]
[1773565380076,6e-05,71869.0,71848.0,0.09662783]
[1773565380363,6e-05,71869.0,71846.0,0.00035738]
[1773565380364,0.01396012,71867.0,71846.0,0.00175738]
[1773565380564,0.01396012,71867.0,71840.0,0.09667783]
[1773565380565,0.06957199,71868.0,71840.0,0.09667783]
[1773565380566,0.01379202,71859.0,71840.0,0.09667783]
[1773565380788,0.01379202,71857.0,71840.0,5e-05]
[1773565381104,0.01379202,71857.0,71837.0,0.07100138]
[1773565381105,0.01379202,71857.0,71838.0,0.06960045]
[1773565381316,0.08337563,71856.0,71836.0,0.06960249]
[1773565381530,0.08337563,71856.0,71831.0,0.0014]
[1773565381531,0.06958361,71856.0,71831.0,0.0014]
[1773565381730,0.06958361,71856.0,71830.0,0.06965826]
[1773565381731,0.01362055,71855.0,71830.0,0.06965826]
[1773565382032,0.01362055,71855.0,71830.0,5e-05]
[1773565382183,0.01362055,71855.0,71817.0,0.06996078]
[1773565382184,0.01362055,71855.0,71823.0,0.06961558]
[1773565382537,1.232817,71848.0,71817.0,0.06996122]
[1773565382726,0.08461414,71849.0,71817.0,0.00034]
[1773565382727,0.01344653,71846.0,71817.0,0.00034]
[1773565382931,0.01344653,71846.0,71815.0,5e-05]
[1773565383104,0.11075597,71846.0,71815.0,5e-05]
[1773565383304,0.01344653,71843.0,71815.0,5e-05]
[1773565383854,0.01344653,71843.0,71813.0,0.06962527]
[1773565385362,0.06959717,71842.0,71813.0,0.06962527]
[1773565385500,0.01293586,71841.0,71813.0,0.06962527]
[1773565386550,0.01293586,71841.0,71813.0,0.1662531]
[1773565387557,0.01293586,71841.0,71812.0,0.06982527]
[1773565387558,0.01259235,71839.0,71812.0,0.0002]
[1773565387798,0.24393922,71840.0,71812.0,0.0002]
[1773565387799,0.0014,71838.0,71812.0,0.0002]
[1773565387925,0.01259235,71837.0,71812.0,0.0002]
[1773565388574,0.01242135,71836.0,71812.0,0.0002]
[1773565388893,0.01242135,71835.0,71812.0,0.0002]
[1773565389041,0.01242135,71835.0,71812.0,0.00030717]
[1773565389262,0.01242135,71835.0,71811.0,0.0002]
[1773565389463,0.01225085,71833.0,71809.0,0.06982828]
[1773565389652,0.01235027,71833.0,71809.0,0.0002]
[1773565391478,0.01191658,71831.0,71809.0,0.0002]
[1773565391686,0.06960686,71832.0,71809.0,0.0002]
[1773565391687,0.01191658,71829.0,71809.0,0.0002]
[1773565392835,0.0014,71828.0,71809.0,0.0002]
[1773565392973,0.01314756,71828.0,71809.0,0.0002]
[1773565393619,0.0696117,71827.0,71809.0,0.0002]
[1773565393921,0.17325872,71827.0,71805.0,0.06963251]
[1773565394144,0.17325872,71827.0,71806.0,0.09520528]
[1773565394559,0.0014,71826.0,71806.0,0.09520528]
[1773565394892,0.17325872,71827.0,71806.0,0.09520528]
[1773565395088,0.0014,71826.0,71806.0,0.09520528]
[1773565395499,0.06961364,71825.0,71806.0,0.0696314]
[1773565395719,0.06961364,71825.0,71807.0,0.09520528]
[1773565396485,0.17326066,71825.0,71807.0,0.09520528]
[1773565401778,0.17326066,71825.0,71807.0,0.09540528]
[1773565401964,0.06961364,71825.0,71807.0,0.0002]
[1773565402185,0.09905426,71824.0,71807.0,0.0002]
[1773565404062,0.06961558,71823.0,71807.0,0.0002]
[1773565406374,0.09905426,71822.0,71807.0,0.0002]
[1773565406589,0.06961558,71823.0,71807.0,0.0002]
[1773565406881,0.05815304,71820.0,71807.0,0.0002]
[1773565407079,0.0014,71819.0,71807.0,0.0002]
[1773565408281,0.06962042,71818.0,71807.0,0.0002]
[1773565408850,0.166449,71818.0,71807.0,0.0002]
[1773565409049,0.09682858,71817.0,71806.0,0.0002698]
[1773565409297,0.06962042,71818.0,71806.0,0.0002698]
[1773565415109,0.1657351,71818.0,71806.0,0.0002698]
[1773565415434,0.1657351,71818.0,71806.0,0.000101]
[1773565416040,0.1667351,71818.0,71806.0,0.000101]
[1773565417503,0.1677351,71818.0,71806.0,0.000101]
[1773565417719,0.07062042,71818.0,71806.0,0.000101]
[1773565417943,0.06962042,71818.0,71806.0,0.000101]
[1773565418273,0.07062042,71818.0,71806.0,0.000101]
[1773565418400,0.02075336,73491.0,71806.0,0.000101]
[1773565418401,0.02075336,73491.0,71809.0,0.09999107]
[1773565418402,0.00022001,71843.0,71809.0,0.09999107]
[1773565418604,0.06959329,71846.0,71821.0,0.09999107]
[1773565418847,0.0014,71845.0,71823.0,0.09999107]
[1773565419170,0.06959523,71844.0,71825.0,0.09999107]
[1773565419524,0.06959523,71844.0,71826.0,0.09999107]
[1773565419728,0.0014,71843.0,71826.0,0.09999107]
[1773565419929,0.0014,71842.0,71826.0,0.09999107]
[1773565420533,0.00022001,71840.0,71826.0,0.09999107]
[1773565421135,0.0014,71839.0,71827.0,0.0696117]
[1773565421358,0.0014,71839.0,71828.0,0.09999107]
[1773565422929,0.06956742,71873.0,71829.0,0.05815304]
[1773565423141,0.06956742,71873.0,71830.0,0.09999107]
[1773565423142,0.0014,71853.0,71830.0,0.09999107]
[1773565423344,0.0014,71853.0,71832.0,0.09999107]
[1773565424082,0.07098663,71853.0,71832.0,0.09999107]
[1773565424310,0.0014,71852.0,71832.0,0.09999107]
[1773565425241,0.06958845,71851.0,71834.0,0.09999107]
[1773565425448,0.0014,71852.0,71834.0,0.09999107]
[1773565425871,0.07098764,71852.0,71834.0,0.09999107]
[1773565427986,0.0014,71851.0,71835.0,0.06960395]
[1773565428397,0.0014,71851.0,71835.0,0.16959502]
[1773565429191,0.06120765,71852.0,71835.0,0.16959502]
[1773565429392,0.0014,71851.0,71835.0,0.16959502]
[1773565429597,0.0014,71851.0,71836.0,0.13741741]
[1773565429819,0.0014,71851.0,71837.0,0.23740848]
[1773565430020,0.0014,71851.0,71838.0,0.2070178]
[1773565430217,0.0014,71851.0,71839.0,0.13741741]
[1773565430418,0.09905426,71855.0,71838.0,0.06960039]
[1773565430419,0.0014,71858.0,71841.0,0.09999107]
[1773565430662,0.0014,71858.0,71843.0,0.09818362]
[1773565430830,0.0014,71858.0,71845.0,0.09818362]
[1773565431037,0.0014,71858.0,71846.0,0.13741741]
[1773565431212,0.0014,71858.0,71847.0,0.13726868]
[1773565431414,0.0014,71858.0,71845.0,0.09818362]
[1773565431689,0.0014,71857.0,71845.0,0.09818362]
[1773565431872,0.00150715,71857.0,71845.0,0.09818362]
[1773565432163,0.00150715,71857.0,71846.0,0.06959329]
[1773565432464,0.00150715,71857.0,71846.0,0.17264297]
[1773565432663,0.06956328,71877.0,71847.0,0.10304968]
[1773565432817,0.10453398,71875.0,71847.0,0.10315683]
[1773565433857,0.05810164,71870.0,71847.0,0.10315683]
[1773565434036,0.10593398,71869.0,71847.0,0.10315683]
[1773565435303,0.06957199,71868.0,71849.0,0.10304968]
[1773565435471,0.17410597,71868.0,71849.0,0.10304968]
[1773565436513,0.08461414,71879.0,71848.0,0.06959135]
[1773565436514,5e-05,71892.0,71858.0,0.05810164]
[1773565436671,0.0698907,71891.0,71859.0,0.01247931]
[1773565436871,0.10453398,71889.0,71859.0,0.01247931]
[1773565437085,0.00022001,71883.0,71861.0,0.0122593]
[1773565437279,0.00022001,71883.0,71862.0,0.0709778]
[1773565437280,0.10453398,71881.0,71862.0,0.0709778]
[1773565438152,0.10453398,71881.0,71862.0,0.08409484]
[1773565438610,0.0014,71882.0,71860.0,0.0695778]
[1773565438611,0.05810164,71880.0,71860.0,0.0695778]
[1773565438771,0.05810164,71880.0,71857.0,0.06958233]
[1773565438772,0.10453398,71877.0,71857.0,0.06958233]
[1773565439106,0.10453398,71877.0,71858.0,0.001]
[1773565439331,0.10453398,71875.0,71855.0,0.06963413]
[1773565439550,0.06956424,71876.0,71855.0,0.06963413]
[1773565439551,0.10453398,71873.0,71855.0,0.06958413]
[1773565439722,0.10453398,71869.0,71855.0,0.06958413]
[1773565439947,0.0014,71868.0,71855.0,0.06958413]
[1773565440395,0.0014,71868.0,71851.0,0.06958845]
[1773565440776,0.0014,71868.0,71849.0,0.06958845]
[1773565440777,0.0014,71868.0,71849.0,0.06959036]
[1773565440778,0.10453398,71867.0,71849.0,0.06959036]
[1773565441304,0.06957392,71866.0,71848.0,0.06959061]
[1773565441505,0.10453398,71865.0,71848.0,0.06959061]
[1773565441931,0.10453398,71865.0,71847.0,0.00010715]
[1773565442136,0.06957392,71866.0,71847.0,0.00010715]
[1773565442137,0.10453398,71859.0,71847.0,0.00010715]
[1773565442318,0.10453398,71857.0,71847.0,0.00010715]
[1773565442525,0.06957392,71866.0,71847.0,0.00010715]
[1773565442526,0.0014,71856.0,71847.0,0.00010715]
[1773565442730,0.0014,71855.0,71847.0,0.00010715]
[1773565442931,0.0014,71854.0,71847.0,0.00010715]
[1773565443142,0.0014,71854.0,71840.0,5e-05]
[1773565443143,0.10453398,71853.0,71840.0,5e-05]
[1773565443339,0.05810164,71850.0,71840.0,5e-05]
[1773565443538,0.10453398,71849.0,71840.0,5e-05]
[1773565443738,0.10453398,71849.0,71835.0,5e-05]
[1773565443940,0.10453398,71849.0,71836.0,0.13720884]
[1773565444138,0.10453398,71847.0,71837.0,0.13720884]
[1773565444482,0.10453398,71847.0,71838.0,0.13720884]
[1773565444621,0.10453398,71847.0,71839.0,0.13720884]
[1773565444958,0.10453398,71847.0,71840.0,0.13720884]
[1773565445136,0.10453398,71847.0,71835.0,0.0002]
[1773565445339,0.10453398,71845.0,71836.0,0.13736479]
[1773565445540,0.10453398,71845.0,71835.0,0.00025]
[1773565445541,0.10453398,71845.0,71837.0,0.13736479]
[1773565445760,0.10453398,71845.0,71838.0,0.13736479]
[1773565445965,0.10453398,71845.0,71839.0,0.13736479]
[1773565446145,0.10453398,71845.0,71835.0,0.0002]
[1773565446344,0.10453398,71845.0,71836.0,0.13738869]
[1773565446519,0.10453398,71845.0,71835.0,0.0002]
[1773565446715,0.10453398,71845.0,71830.0,5e-05]
[1773565447151,0.10453398,71845.0,71829.0,0.06960957]
[1773565447439,0.10453398,71843.0,71829.0,0.06960957]
[1773565447661,0.06959523,71844.0,71827.0,0.07021444]
[1773565447662,0.10453398,71841.0,71827.0,0.07021444]
[1773565449070,0.0014,71840.0,71827.0,0.07021444]
[1773565449263,0.10593398,71840.0,71827.0,0.07021444]
[1773565449465,0.10453398,71838.0,71827.0,0.0006029]
[1773565449673,0.10453398,71838.0,71820.0,5e-05]
[1773565449846,0.10453398,71838.0,71810.0,5e-05]
[1773565449847,0.06960007,71839.0,71812.0,0.06962598]
[1773565449848,0.10453398,71829.0,71812.0,0.06962598]
[1773565450059,0.05810164,71830.0,71813.0,0.06962475]
[1773565450060,0.10453398,71827.0,71813.0,0.06962475]
[1773565450737,0.10453398,71827.0,71814.0,0.06962402]
[1773565450933,0.10458861,71827.0,71814.0,0.06962402]
[1773565451536,0.0014,71826.0,71817.0,0.05810164]
[1773565451736,0.0696019,71838.0,71818.0,0.09615086]
[1773565451737,0.0014,71834.0,71818.0,0.09615086]
[1773565451982,0.0014,71833.0,71818.0,0.09615086]
[1773565452581,0.0014,71832.0,71818.0,0.09615086]
[1773565452781,0.0014,71831.0,71817.0,0.00035739]
[1773565453113,0.06960169,71838.0,71817.0,0.00035739]
[1773565453114,0.0014,71830.0,71817.0,0.00035739]
[1773565453331,0.10593398,71829.0,71817.0,0.00035739]
[1773565453482,0.0014,71828.0,71818.0,0.06962042]
[1773565453686,0.0014,71827.0,71818.0,0.06962042]
[1773565454181,0.0014,71827.0,71818.0,0.05238427]
[1773565455187,0.0014,71826.0,71818.0,0.05238427]
[1773565455395,0.0014,71825.0,71818.0,0.05238427]
[1773565458151,0.0014,71825.0,71818.0,0.0002]
[1773565458310,0.10593398,71825.0,71818.0,0.0002]
[1773565459530,0.10593398,71825.0,71812.0,0.06962601]
[1773565459744,0.10593398,71825.0,71812.0,0.06972543]
[1773565461027,0.10593398,71825.0,71812.0,9.942e-05]
[1773565462001,0.60987188,71894.0,71812.0,9.942e-05]
[1773565462002,0.06959167,71848.0,71812.0,9.942e-05]
[1773565462203,0.06958993,71850.0,71812.0,9.942e-05]
[1773565462204,0.10003468,71850.0,71830.0,0.05810164]
[1773565462456,0.0014,71850.0,71831.0,0.10297148]
[1773565463261,0.0014,71850.0,71832.0,0.06960686]
[1773565463416,0.0014,71850.0,71833.0,0.10297148]
[1773565465310,0.0014,71850.0,71834.0,0.06960492]
[1773565465473,0.0014,71850.0,71835.0,0.10437148]
[1773565465893,0.00162001,71850.0,71835.0,0.10437148]
[1773565466497,0.00197736,71850.0,71835.0,0.10437148]
[1773565467608,0.00197736,71850.0,71836.0,0.06960298]
[1773565468160,0.0014,71849.0,71836.0,0.06960298]
[1773565468568,0.10143468,71849.0,71836.0,0.06960298]
[1773565471022,1.60143468,71849.0,71836.0,0.06960298]
[1773565471688,0.10003468,71848.0,71834.0,0.06960492]
[1773565472721,0.00022001,71852.0,71835.0,0.04775391]
[1773565472722,1e-08,71852.0,71835.0,0.04775391]
[1773565473043,1e-08,71852.0,71835.0,0.04811126]
[1773565473419,0.00034,71854.0,71835.0,0.04811126]
[1773565473622,0.00162001,71860.0,71836.0,0.06960298]
[1773565473943,0.00162001,71860.0,71837.0,0.0600656]
[1773565474140,0.00022001,71860.0,71837.0,0.0600656]
[1773565474692,0.00022001,71860.0,71838.0,0.0014]
[1773565474963,0.00022001,71860.0,71839.0,0.05993654]
[1773565475928,0.00022001,71857.0,71841.0,0.06608474]
[1773565477933,0.00022001,71857.0,71842.0,0.06959717]
[1773565478130,0.00022001,71857.0,71843.0,0.06569419]
[1773565478436,0.00022001,71857.0,71844.0,0.0014]
[1773565480305,0.00022001,71857.0,71845.0,0.06959426]
[1773565483607,0.0014,71865.0,71845.0,0.1474985]
[1773565483763,0.10143468,71865.0,71845.0,0.1474985]
[1773565484692,0.00022001,71860.0,71845.0,0.1474985]
[1773565485205,0.00022001,71860.0,71845.0,0.06959426]
[1773565487621,0.00022001,71860.0,71846.0,0.07697175]
[1773565489416,0.00022001,71860.0,71847.0,0.06959232]
[1773565490731,0.00022001,71860.0,71848.0,0.08194457]
[1773565490945,0.00022001,71860.0,71847.0,0.06959232]
[1773565491496,0.09812568,71866.0,71845.0,2.74266214]
[1773565491669,0.09812568,71859.0,71845.0,2.42493657]
[1773565492339,0.0014,71858.0,71845.0,2.42493657]
[1773565492548,0.09613475,71866.0,71845.0,2.42633657]
[1773565492726,0.00022001,71860.0,71846.0,0.10062548]
[1773565493819,0.00022001,71860.0,71847.0,0.06959232]
[1773565494050,0.00022001,71860.0,71847.0,0.1702178]
[1773565495085,0.00022001,71860.0,71847.0,0.06959232]
[1773565496270,0.00022001,71860.0,71845.0,2.35534232]
[1773565496271,0.09613475,71859.0,71845.0,2.35534232]
[1773565496493,0.09613475,71859.0,71845.0,2.19531734]
[1773565499039,0.08313475,71859.0,71845.0,2.19531734]
[1773565501532,0.0014,71858.0,71845.0,2.19531734]
[1773565502116,0.09753475,71858.0,71845.0,2.19531734]
[1773565502360,0.09753475,71858.0,71845.0,2.19551734]
[1773565503605,0.0014,71858.0,71845.0,2.19551734]
[1773565504521,0.0014,71857.0,71845.0,2.19551734]
[1773565504708,0.06957498,71865.0,71845.0,2.19551734]
[1773565504710,5e-05,71881.0,71861.0,0.10062548]
[1773565504923,5e-05,71881.0,71845.0,2.19551734]
[1773565504924,0.09613475,71879.0,71862.0,0.0014]
[1773565505141,0.09613475,71879.0,71848.0,0.1564]
[1773565505142,0.09613475,71878.0,71858.0,0.0014]
[1773565505270,0.09613475,71878.0,71853.0,0.10062548]
[1773565505473,0.09613475,71878.0,71854.0,0.10202548]
[1773565505673,0.09613475,71876.0,71855.0,0.17021006]
[1773565505869,0.09624195,71876.0,71856.0,0.0014]
[1773565506396,0.09613475,71874.0,71857.0,0.0014]
[1773565507003,0.09613475,71874.0,71861.0,0.001]
[1773565507198,0.09613475,71874.0,71857.0,0.0014]
[1773565507825,0.09613475,71874.0,71855.0,0.17021006]
[1773565508049,0.0001072,71876.0,71857.0,0.10062548]
[1773565509820,0.0014,71875.0,71860.0,0.06957973]
[1773565509961,0.0014,71875.0,71860.0,0.17020521]
[1773565511517,0.0011,71900.0,71862.0,0.10062548]
[1773565511837,0.0011,71900.0,71876.0,0.10062548]
[1773565511838,0.00022001,71893.0,71876.0,0.10062548]
[1773565512019,0.00022001,71893.0,71878.0,0.10062548]
[1773565512778,0.00022001,71893.0,71880.0,0.10062548]
[1773565513586,0.00022001,71893.0,71881.0,0.0014]
[1773565513803,0.00022001,71893.0,71881.0,0.10202548]
[1773565514198,0.00022001,71893.0,71881.0,0.17158453]
[1773565514397,0.00022001,71893.0,71881.0,0.07095905]
[1773565514604,0.00022001,71893.0,71882.0,0.10062548]
[1773565515963,0.09613475,71892.0,71872.0,0.17994282]
[1773565516142,0.10694086,71892.0,71872.0,0.0695678]
[1773565516347,0.09613475,71890.0,71875.0,5e-05]
[1773565516551,0.0014,71889.0,71875.0,5e-05]
[1773565516751,0.09753475,71889.0,71873.0,0.0014]
[1773565517575,0.09753475,71889.0,71866.0,0.17066791]
[1773565517772,0.09753475,71889.0,71872.0,0.0014]
[1773565518877,0.09753475,71889.0,71873.0,0.06956715]
[1773565519928,0.09613475,71889.0,71873.0,0.06956715]
[1773565520050,0.09753475,71889.0,71873.0,0.06956715]
[1773565520829,0.09753475,71888.0,71873.0,0.06956715]
[1773565521325,0.0014,71887.0,71873.0,0.06956715]
[1773565521502,0.00022001,71893.0,71874.0,0.10062548]
[1773565522664,0.00022001,71893.0,71880.0,2.12572318]
[1773565522804,0.00022001,71893.0,71881.0,0.0014]
[1773565523004,0.00022001,71893.0,71881.0,0.07095866]
[1773565524643,0.0014,71894.0,71881.0,0.07095866]
[1773565525214,0.0014,71894.0,71881.0,0.06955866]
[1773565527073,0.0014,71895.0,71881.0,0.06955866]
[1773565528310,0.00022001,71893.0,71881.0,0.06955866]
[1773565528526,0.09783701,71893.0,71881.0,0.06955866]
[1773565529909,0.097617,71890.0,71880.0,1.77610856]
[1773565530177,0.097617,71890.0,71880.0,1.49893826]
[1773565530382,0.0014,71889.0,71880.0,1.46684177]
[1773565530679,0.0014,71888.0,71880.0,1.40079461]
[1773565531062,0.0014,71887.0,71880.0,1.40079461]
[1773565531258,0.05803785,71891.0,71880.0,1.40079461]
[1773565531440,0.0014,71886.0,71880.0,1.40079461]
[1773565531850,0.0014,71885.0,71880.0,1.40079461]
[1773565532288,0.06955063,71891.0,71880.0,1.40079461]
[1773565532545,0.0014,71890.0,71880.0,1.40079461]
[1773565532673,0.06055063,71891.0,71880.0,1.40079461]
[1773565533066,0.0014,71890.0,71880.0,1.40079461]
[1773565533267,0.0014,71889.0,71880.0,1.40079461]
[1773565533983,0.0014,71888.0,71880.0,1.40079461]
[1773565534501,0.0014,71887.0,71880.0,1.40079461]
[1773565534899,0.06954876,71892.0,71880.0,1.40079461]
[1773565535075,0.0014,71891.0,71880.0,1.40079461]
[1773565535503,0.0014,71890.0,71880.0,0.08046109]
[1773565536127,0.01108634,71899.0,71880.0,0.08046109]
[1773565536328,0.01108634,71899.0,71881.0,0.1083559]
[1773565536329,0.08062855,71899.0,71881.0,0.1083559]
[1773565536509,0.0014,71898.0,71881.0,0.1083559]
[1773565537318,0.0014,71897.0,71881.0,0.1083559]